bitfinex/quotes_SOLUSD_20240912
["timestamp","ask_amount","ask_price","bid_price","bid_amount"]
[1726108514447,6.6441,135.46,135.41,6.6464]
[1726108514769,6.6435,135.47,135.42,6.6459]
[1726108515063,6.6435,135.47,135.43,6.6454]
[1726108515265,6.6435,135.47,135.41,23.2614]
[1726108515470,6.644,135.46,135.41,16.6154]
[1726108516265,6.644,135.46,135.41,23.2618]
[1726108516760,6.6436,135.47,135.42,8.12193033]
[1726108516958,6.6436,135.47,135.42,6.6458]
[1726108517543,6.6441,135.46,135.41,23.2618]
[1726108518870,6.6441,135.46,135.42,6.6459]
[1726108519474,6.6436,135.47,135.42,6.6459]
[1726108527254,6.643,135.48,135.43,6.6453]
[1726108527553,6.9079587,135.49,135.44,8.12020797]
[1726108527862,6.9079587,135.49,135.44,6.6447]
[1726108528876,6.9079587,135.49,135.45,6.6443]
[1726108529186,6.6431,135.48,135.43,16.6129]
[1726108529550,6.6431,135.48,135.43,23.2582]
[1726108530668,6.6435,135.47,135.43,23.2582]
[1726108536378,6.6435,135.47,135.43,16.6129]
[1726108537462,6.6444,135.46,135.41,6.6464]
[1726108537680,0.2653587,135.49,135.45,14.68452783]
[1726108537876,0.2653587,135.49,135.48,6.643]
[1726108538956,0.2653587,135.49,135.47,23.2514]
[1726108540362,0.2653587,135.49,135.48,6.643]
[1726108541482,0.2653587,135.49,135.47,16.6079]
[1726108541663,0.2653587,135.49,135.44,15.0166]
[1726108541865,0.2653587,135.49,135.46,6.6439]
[1726108546263,0.2653587,135.49,135.46,16.6095]
[1726108546463,0.2653587,135.49,135.48,6.643]
[1726108551673,0.2653587,135.49,135.46,16.6095]
[1726108552087,0.2653587,135.49,135.47,6.643]
[1726108552293,0.2653587,135.49,135.46,16.6095]
[1726108552493,0.2653587,135.49,135.48,6.643]
[1726108558380,0.2653587,135.49,135.46,23.2531]
[1726108558578,0.2653587,135.49,135.47,6.6434]
[1726108560690,0.2653587,135.49,135.46,23.2535]
[1726108566102,0.2653587,135.49,135.46,16.6095]
[1726108566294,0.2653587,135.49,135.42,16.6139]
[1726108566487,0.2653587,135.49,135.42,23.2597]
[1726108566488,6.6439,135.47,135.42,23.2597]
[1726108566889,22.2514,135.48,135.39,16.6186]
[1726108567100,6.6445,135.46,135.4,6.6468]
[1726108568309,22.2514,135.48,135.4,6.6468]
[1726108568500,23.776884,135.46,135.36,6.6488]
[1726108568802,23.776884,135.44,135.36,6.6488]
[1726108569005,30.421884,135.44,135.38,6.6478]
[1726108569212,20.0,135.45,135.4,6.6468]
[1726108569413,23.776884,135.45,135.4,6.6468]
[1726108569701,6.6445,135.45,135.4,6.6468]
[1726108570479,6.6445,135.45,135.39,6.6474]
[1726108572209,6.6445,135.45,135.4,6.6469]
[1726108572423,23.776884,135.46,135.4,6.6469]
[1726108572591,30.420884,135.46,135.4,6.6469]
[1726108573191,6.6446,135.45,135.38,23.2671]
[1726108573393,6.6446,135.45,135.39,6.6473]
[1726108575596,6.6446,135.45,135.4,6.6468]
[1726108578901,6.6441,135.46,135.41,6.6464]
[1726108580300,20.0,135.47,135.4,6.6469]
[1726108580301,6.6446,135.45,135.4,6.6469]
[1726108587717,6.6458,135.43,135.38,16.6197]
[1726108587912,6.6451,135.44,135.39,6.6473]
[1726108589403,6.6451,135.44,135.4,6.6469]
[1726108591314,6.6445,135.45,135.4,6.6469]
[1726108594903,23.776884,135.46,135.39,6.6474]
[1726108596232,6.6451,135.44,135.39,6.6474]
[1726108596712,6.6456,135.43,135.39,6.6474]
[1726108597098,6.646,135.42,135.38,23.2676]
[1726108597699,6.646,135.42,135.38,16.6197]
[1726108599915,6.3576,135.44,135.38,23.2675]
[1726108599916,6.6455,135.43,135.38,23.2675]
[1726108608011,6.3576,135.44,135.39,6.6473]
[1726108608012,13.0026,135.44,135.39,6.6473]
[1726108608815,6.6455,135.43,135.38,23.2674]
[1726108609543,6.3576,135.44,135.38,23.2674]
[1726108611113,6.3576,135.44,135.38,16.6197]
[1726108612328,6.6462,135.42,135.38,16.6197]
[1726108613920,6.6465,135.41,135.36,6.6488]
[1726108614222,6.646,135.42,135.36,6.6488]
[1726108618244,6.6455,135.43,135.37,6.6482]
[1726108618416,21.8582,135.44,135.35,32.0822]
[1726108619335,6.646,135.42,135.36,6.6488]
[1726108620527,21.8582,135.44,135.35,38.7315]
[1726108620734,6.647,135.4,135.35,16.6233]
[1726108622124,6.646,135.42,135.36,6.6488]
[1726108625737,9.71768554,135.42,135.36,6.6488]
[1726108626534,3.07168554,135.42,135.37,6.6482]
[1726108626750,21.8582,135.44,135.37,6.6482]
[1726108627046,28.5032,135.44,135.38,6.6477]
[1726108628426,31.49367937,135.44,135.38,6.6477]
[1726108628931,31.49367937,135.44,135.37,6.6483]
[1726108630049,6.6456,135.43,135.37,6.6483]
[1726108631650,6.646,135.42,135.35,23.2722]
[1726108632358,6.647,135.4,135.35,16.6233]
[1726108632645,23.776884,135.43,135.34,6.9151587]
[1726108632646,6.6465,135.41,135.34,6.9151587]
[1726108633551,6.6465,135.41,135.35,6.6493]
[1726108634829,6.6465,135.41,135.34,6.9151587]
[1726108638131,6.647,135.4,135.34,6.9151587]
[1726108638332,6.6465,135.41,135.34,6.9151587]
[1726108638531,6.6465,135.41,135.35,6.6493]
[1726108639151,6.646,135.42,135.35,6.6493]
[1726108648362,6.6464,135.41,135.35,6.6493]
[1726108649649,6.6464,135.41,135.34,23.5388587]
[1726108650663,6.6471,135.4,135.34,23.5388587]
[1726108651264,6.6471,135.4,135.34,16.8890587]
[1726108651758,23.776884,135.43,135.34,16.8890587]
[1726108652137,20.0,135.42,135.34,16.8890587]
[1726108652549,6.647,135.4,135.34,16.8890587]
[1726108653854,6.6476,135.39,135.34,0.2653587]
[1726108656337,23.776884,135.41,135.34,0.2653587]
[1726108656662,6.6468,135.41,135.34,6.9150587]
[1726108658244,6.6468,135.41,135.35,6.6494]
[1726108658747,26.646,135.42,135.35,6.6494]
[1726108661153,26.646,135.42,135.36,6.6488]
[1726108661469,16.889059,135.44,135.39,6.6474]
[1726108661850,6.6446,135.45,135.38,6.6479]
[1726108662364,6.6451,135.44,135.38,6.6479]
[1726108663142,6.6451,135.44,135.37,16.6202]
[1726108663350,6.6455,135.43,135.37,16.6202]
[1726108663661,6.646,135.42,135.37,16.6202]
[1726108664039,6.646,135.42,135.36,16.1574]
[1726108664641,6.6465,135.41,135.36,16.1574]
[1726108664859,6.6465,135.41,135.34,23.5396587]
[1726108665560,6.647,135.4,135.34,23.5396587]
[1726108670948,6.6465,135.41,135.34,23.5396587]
[1726108672866,6.6474,135.4,135.34,23.5396587]
[1726108674369,46.293284,135.43,135.34,0.2653587]
[1726108674370,6.648,135.38,135.34,0.2653587]
[1726108674670,23.776884,135.41,135.34,0.2653587]
[1726108674869,20.0,135.4,135.34,0.2653587]
[1726108675070,70.0,135.4,135.34,0.2653587]
[1726108675553,20.0,135.4,135.34,0.2653587]
[1726108675948,6.6475,135.39,135.34,0.2653587]
[1726108676468,26.647,135.4,135.34,6.9151587]
[1726108677045,29.1619,135.43,135.34,24.0422427]
[1726108677243,6.6455,135.43,135.34,24.0422427]
[1726108677468,0.2653587,135.49,135.39,30.53322783]
[1726108677770,0.2653587,135.49,135.38,6.6536]
[1726108677771,0.2653587,135.49,135.48,6.643]
[1726108678067,0.2653587,135.49,135.47,6.6435]
[1726108678853,0.2653587,135.49,135.48,6.643]
[1726108679055,0.2653587,135.53,135.51,6.6412]
[1726108679261,0.2653587,135.53,135.5,16.6046]
[1726108679262,0.2653587,135.53,135.52,8.11663033]
[1726108680171,0.2653587,135.53,135.52,6.641]
[1726108680655,0.2653587,135.53,135.5,16.6046]
[1726108681864,0.2653587,135.53,135.51,8.11702924]
[1726108682176,0.2653587,135.53,135.51,6.6415]
[1726108682351,0.2653587,135.53,135.51,8.11698327]
[1726108682546,0.2653587,135.53,135.51,6.6415]
[1726108683574,0.2653587,135.53,135.52,6.641]
[1726108686568,0.2653587,135.53,135.51,6.6414]
[1726108687347,0.2653587,135.53,135.5,23.2465]
[1726108689974,0.2653587,135.53,135.5,16.6046]
[1726108690670,0.2653587,135.53,135.5,23.2462]
[1726108692468,0.2653587,135.53,135.5,16.6046]
[1726108693462,0.2653587,135.53,135.5,23.2466]
[1726108694973,0.2653587,135.53,135.5,16.6046]
[1726108696986,0.2653587,135.53,135.5,23.2465]
[1726108697281,0.2653587,135.53,135.5,16.6046]
[1726108697478,0.2653587,135.53,135.52,30.417884]
[1726108697699,0.2653587,135.53,135.52,6.641]
[1726108698671,0.2653587,135.53,135.52,30.417884]
[1726108699388,0.2653587,135.53,135.52,6.641]
[1726108701294,0.2653587,135.53,135.5,23.2462]
[1726108701966,0.2653587,135.53,135.51,6.6415]
[1726108706884,0.2653587,135.53,135.52,6.641]
[1726108707795,0.2653587,135.53,135.51,6.6415]
[1726108709200,0.2653587,135.53,135.52,6.641]
[1726108709798,0.2653587,135.53,135.52,8.1164894]
[1726108710174,0.2653587,135.53,135.51,1.47548976]
[1726108710385,0.2653587,135.53,135.5,16.6046]
[1726108711292,0.2653587,135.53,135.5,23.2465]
[1726108712576,0.2653587,135.53,135.51,6.6415]
[1726108714387,0.2653587,135.53,135.52,6.641]
[1726108719174,0.2653587,135.53,135.52,30.417884]
[1726108719399,0.2653587,135.53,135.52,31.89318575]
[1726108719598,0.2653587,135.53,135.52,30.417884]
[1726108720802,0.2653587,135.53,135.52,31.89310507]
[1726108721183,0.2653587,135.53,135.5,38.2095]
[1726108721397,0.2653587,135.53,135.51,6.6415]
[1726108723112,0.2653587,135.53,135.5,23.2465]
[1726108723408,0.2653587,135.53,135.5,16.6046]
[1726108726293,0.2653587,135.53,135.5,23.2465]
[1726108726607,0.2653587,135.53,135.5,16.6046]
[1726108727902,0.2653587,135.53,135.49,6.6424]
[1726108730697,6.6691587,135.53,135.49,6.6424]
[1726108732499,6.6691587,135.53,135.48,6.6429]
[1726108736592,6.642,135.51,135.45,6.6441]
[1726108736812,6.6691587,135.53,135.48,6.643]
[1726108737004,6.6691587,135.53,135.43,16.5398]
[1726108737005,6.6691587,135.53,135.44,56.15286416]
[1726108737409,6.6691587,135.53,135.46,22.92826416]
[1726108737608,0.2653587,135.53,135.51,6.6411]
[1726108741827,0.2653587,135.53,135.52,6.641]
[1726108742015,0.2653587,135.53,135.52,47.020584]
[1726108744148,0.2653587,135.53,135.52,61.68490154]
[1726108750239,0.2653587,135.53,135.52,47.020584]
[1726108750408,0.2653587,135.53,135.52,61.68490154]
[1726108754243,0.2653587,135.53,135.52,47.020584]
[1726108758235,0.2653587,135.53,135.52,61.68490154]
[1726108758835,0.2653587,135.53,135.52,47.020584]
[1726108766651,0.2653587,135.53,135.52,61.68490154]
[1726108769242,0.2653587,135.57,135.56,23.2369]
[1726108769435,0.2653587,135.57,135.56,37.90121754]
[1726108770236,0.2653587,135.57,135.56,14.66431754]
[1726108773136,0.2653587,135.57,135.56,38.44120154]
[1726108773746,0.2653587,135.57,135.53,16.6012]
[1726108773951,0.2653587,135.57,135.5,16.6047]
[1726108774129,6.6392,135.56,135.52,14.66431754]
[1726108776256,23.0702587,135.57,135.52,14.66431754]
[1726108776257,23.0702587,135.57,135.52,21.30501754]
[1726108776567,23.0702587,135.57,135.54,14.66431754]
[1726108778772,0.2653587,135.57,135.54,21.30401754]
[1726108779260,0.2653587,135.57,135.56,14.66431754]
[1726108779437,0.2653587,135.57,135.56,38.44120154]
[1726108779845,0.2653587,135.57,135.56,45.08030154]
[1726108780363,0.2653587,135.57,135.56,38.44120154]
[1726108780541,0.2653587,135.57,135.56,45.08030154]
[1726108780956,0.2653587,135.57,135.56,46.55522608]
[1726108781253,0.2653587,135.57,135.56,45.08030154]
[1726108781632,0.2653587,135.57,135.56,46.55493308]
[1726108782555,0.2653587,135.57,135.56,45.08030154]
[1726108793057,0.2653587,135.57,135.56,30.415984]
[1726108793373,0.2653587,135.57,135.56,45.08030154]
[1726108797463,0.2653587,135.57,135.56,30.415984]
[1726108797653,0.2653587,135.57,135.56,45.08030154]
[1726108805673,0.2653587,135.61,135.6,30.413984]
[1726108805990,0.2653587,135.61,135.6,45.07830154]
[1726108806166,0.2653587,135.61,135.6,30.413984]
[1726108806370,0.2653587,135.65,135.64,47.000084]
[1726108809673,0.2653587,135.65,135.64,23.2232]
[1726108809857,0.2653587,135.65,135.64,61.66440154]
[1726108810067,0.2653587,135.65,135.64,63.13823038]
[1726108810874,0.2653587,135.65,135.64,47.000084]
[1726108813803,0.2653587,135.65,135.64,48.47387555]
[1726108815706,0.2653587,135.65,135.64,47.000084]
[1726108820172,0.2653587,135.69,135.68,46.993184]
[1726108820373,0.2653587,135.69,135.68,61.65750154]
[1726108820582,6.4099587,135.73,135.72,23.2094]
[1726108820583,0.2653587,135.73,135.72,23.2094]
[1726108820812,0.2653587,135.73,135.72,61.65060154]
[1726108826088,0.2653587,135.73,135.72,63.12358498]
[1726108826284,6.3521587,135.77,135.76,6.6293]
[1726108826285,0.2653587,135.77,135.76,6.6293]
[1726108826505,0.2653587,135.77,135.76,30.406184]
[1726108826804,0.2653587,135.77,135.76,31.87876941]
[1726108827183,0.2653587,135.77,135.76,30.406184]
[1726108832005,0.2653587,135.77,135.76,31.87880447]
[1726108832193,0.2653587,135.77,135.76,45.07050154]
[1726108833686,0.2653587,135.77,135.76,65.07050154]
[1726108836781,0.2653587,135.77,135.76,45.07050154]
[1726108839119,0.2653587,135.81,135.8,23.1957]
[1726108839303,0.2653587,135.81,135.8,61.63690154]
[1726108840611,0.2653587,135.81,135.8,83.10888087]
[1726108840811,0.2653587,135.85,135.84,23.189]
[1726108841190,0.2653587,135.85,135.84,46.965884]
[1726108841793,0.2653587,135.85,135.84,23.189]
[1726108842717,22.6062,135.88,135.84,23.189]
[1726108842889,22.6062,135.88,135.84,16.5636]
[1726108842890,0.230681,135.87,135.84,16.5636]
[1726108843094,0.230681,135.87,135.86,30.401284]
[1726108843583,0.230681,135.87,135.85,23.776884]
[1726108843892,0.230681,135.87,135.84,16.5636]
[1726108844212,0.230681,135.87,135.86,6.6244]
[1726108846623,0.230681,135.87,135.85,6.6249]
[1726108846792,0.230681,135.87,135.84,16.5636]
[1726108847890,0.230681,135.87,135.85,6.6248]
[1726108848512,0.230681,135.87,135.86,6.6244]
[1726108849555,0.230681,135.87,135.85,6.6249]
[1726108850395,0.230681,135.87,135.84,23.1889]
[1726108850710,0.230681,135.87,135.85,6.6248]
[1726108854015,0.230681,135.87,135.84,23.1889]
[1726108854388,0.230681,135.87,135.85,6.6249]
[1726108855397,0.230681,135.87,135.86,6.6244]
[1726108863119,0.230681,135.87,135.85,6.6249]
[1726108863906,0.230681,135.87,135.86,6.6244]
[1726108867024,0.230681,135.87,135.85,6.6248]
[1726108867424,0.230681,135.87,135.84,16.5636]
[1726108867425,0.230681,135.87,135.86,6.6244]
[1726108872915,0.230681,135.87,135.79,34.61066271]
[1726108873144,22.837,135.86,135.82,6.6262]
[1726108873427,22.837,135.86,135.84,6.6253]
[1726108874231,22.837,135.86,135.81,16.5671]
[1726108874232,0.230681,135.87,135.83,16.564]
[1726108874431,0.230681,135.87,135.8,14.66431754]
[1726108874432,0.230681,135.87,135.86,6.6244]
[1726108874631,0.230681,135.87,135.86,30.401284]
[1726108876145,0.230681,135.87,135.86,6.6244]
[1726108877732,0.230681,135.87,135.86,30.401284]
[1726108881906,0.230681,135.87,135.86,6.6244]
[1726108883813,0.230681,135.87,135.86,30.401284]
[1726108885734,0.230681,135.87,135.86,6.6244]
[1726108886525,0.230681,135.87,135.86,30.401284]
[1726108898315,0.230681,135.87,135.86,6.6244]
[1726108898926,0.230681,135.87,135.85,23.1864]
[1726108900548,22.994281,135.87,135.85,16.5615]
[1726108900750,22.994281,135.87,135.81,406.866]
[1726108900937,22.994281,135.87,135.82,6.6259]
[1726108901636,22.994281,135.87,135.81,16.566]
[1726108902939,22.994281,135.87,135.83,6.6259]
[1726108903245,22.994281,135.87,135.84,16.5634]
[1726108903246,22.7636,135.87,135.84,16.5634]
[1726108903430,23.1482677,135.87,135.86,6.6244]
[1726108903630,0.3846677,135.87,135.86,6.6244]
[1726108910834,0.3846677,135.87,135.86,30.401284]
[1726108918640,7.93477849,135.91,135.9,23.1787]
[1726108918963,0.2639369,135.91,135.9,61.61990154]
[1726108919535,0.2639369,135.91,135.9,63.09086792]
[1726108919745,0.2639369,135.91,135.9,83.09086792]
[1726108919956,0.2639369,135.91,135.9,81.61990154]
[1726108920161,0.2639369,135.95,135.9,81.61990154]
[1726108920162,0.2639369,135.95,135.94,56.2747]
[1726108920349,0.2639369,135.95,135.94,23.1719]
[1726108920936,0.2639369,135.95,135.94,16.5514]
[1726108921182,0.2639369,135.95,135.94,23.1719]
[1726108921842,0.2639369,135.95,135.94,16.5514]
[1726108922064,0.2639369,135.95,135.89,14.66431754]
[1726108922065,0.2639369,135.95,135.92,6.6214]
[1726108922353,0.2639369,135.95,135.91,23.1768]
[1726108923868,0.2639369,135.95,135.91,16.5549]
[1726108925250,0.2639369,135.95,135.93,6.6209]
[1726108929157,0.2639369,135.95,135.91,16.5549]
[1726108930366,0.2639369,135.95,135.92,6.6215]
[1726108930958,7.91948964,135.95,135.92,6.6215]
[1726108931154,7.91948964,135.95,135.91,23.1768]
[1726108931859,7.91948964,135.95,135.92,6.6214]
[1726108933387,0.2639369,135.95,135.93,16.5516]
[1726108933566,0.2639369,135.95,135.92,6.6215]
[1726108933885,0.2639369,135.95,135.91,6.6219]
[1726108934987,0.2639369,135.95,135.92,6.6214]
[1726108936783,0.2639369,135.95,135.93,6.621]
[1726108937483,0.2639369,135.95,135.92,16.553]
[1726108937688,0.2639369,135.95,135.94,6.6205]
[1726108939895,0.2639369,135.95,135.94,54.6547688]
[1726108940094,0.2639369,135.95,135.94,74.6547688]
[1726108940299,0.2639369,135.99,135.98,23.1651]
[1726108940475,0.2639369,135.99,135.98,46.941984]
[1726108941088,0.2639369,135.99,135.98,23.1651]
[1726108941786,22.291,136.04,135.98,23.1651]
[1726108941787,22.291,136.04,135.98,16.5465]
[1726108941990,0.1287707,135.99,135.98,16.5465]
[1726108942196,0.1287707,135.99,135.98,23.1651]
[1726108942372,0.1287707,135.99,135.98,46.941984]
[1726108952095,0.1287707,135.99,135.98,16.5465]
[1726108952280,0.1287707,135.99,135.92,33.1071]
[1726108952281,0.1287707,135.99,135.95,16.5499]
[1726108952592,0.1287707,135.99,135.97,6.6187]
[1726108952793,0.1287707,135.99,135.98,21.18231436]
[1726108953479,0.1287707,135.99,135.98,30.395484]
[1726108953904,22.2285165,136.04,135.98,30.395484]
[1726108954272,22.2285165,136.04,135.98,23.776884]
[1726108954673,28.8442165,136.04,135.98,30.395384]
[1726108955283,28.8442165,136.04,135.99,6.618]
[1726108955579,22.2285165,136.04,135.99,6.618]
[1726108956699,28.8442165,136.04,135.99,6.618]
[1726108958192,28.8442165,136.04,135.98,6.6185]
[1726108959079,6.6162,136.03,135.97,23.1659]
[1726108959284,6.6162,136.03,135.98,6.6186]
[1726108960599,7.89764443,136.03,135.97,23.1659]
[1726108961287,7.89764443,136.03,135.98,6.6185]
[1726108962507,1.28144443,136.03,135.97,16.5469]
[1726108962714,1.28144443,136.03,135.98,23.776884]
[1726108962891,6.6156,136.05,135.98,23.776884]
[1726108963609,7.63420679,136.04,135.98,23.776884]
[1726108964495,7.63420679,136.04,136.0,6.6175]
[1726108965393,7.63420679,136.04,136.01,6.617]
[1726108965590,7.63420679,136.04,136.0,1.47036034]
[1726108965790,7.63420679,136.04,136.01,1.47013546]
[1726108966189,7.63420679,136.04,136.01,16.5419]
[1726108966597,7.63420679,136.04,136.01,23.1588]
[1726108968288,7.63420679,136.04,136.02,6.6165]
[1726108972212,7.63420679,136.04,136.03,6.6161]
[1726108972593,7.63420679,136.04,136.01,23.1585]
[1726108972794,7.63420679,136.04,136.02,6.6165]
[1726108972989,7.63420679,136.04,136.01,23.1589]
[1726108975595,7.63420679,136.04,136.02,6.6164]
[1726108976733,7.63420679,136.04,136.01,23.1589]
[1726108979900,6.6162,136.03,135.99,6.618]
[1726108980102,36.06920679,136.04,135.99,6.618]
[1726108980519,36.06920679,136.04,135.98,16.5461]
[1726108980520,29.45350679,136.04,135.98,16.5461]
[1726108980819,6.6168,136.02,135.98,16.5461]
[1726108980998,6.6168,136.02,135.98,23.1647]
[1726108981324,6.6162,136.03,135.98,23.1647]
[1726108981523,7.60993387,136.02,135.98,23.1647]
[1726108982596,14.22663387,136.02,135.98,16.5461]
[1726108982806,7.60993387,136.02,135.98,23.1642]
[1726108983495,7.60993387,136.02,135.99,6.6181]
[1726108984097,7.60993387,136.02,136.01,6.6171]
[1726108984298,21.8193,136.04,136.01,6.6171]
[1726108984516,7.58853272,136.04,136.02,6.6164]
[1726108985219,7.58853272,136.04,136.03,6.6161]
[1726108986299,7.58853272,136.04,136.02,23.1574]
[1726108996746,7.58853272,136.04,136.03,8.08626089]
[1726108998109,7.58853272,136.04,136.03,6.6161]
[1726108998513,1.5900977,136.08,136.03,6.6161]
[1726108998715,7.860278,136.08,136.03,6.6161]
[1726108998935,7.860278,136.08,136.04,6.6153]
[1726108999237,7.860278,136.08,136.02,16.5409]
[1726108999238,0.3087458,136.08,136.05,6.6151]
[1726108999414,0.3087458,136.08,136.03,6.616]
[1726108999415,14.47061024,136.08,136.03,6.616]
[1726109000438,6.6142,136.07,136.02,23.1574]
[1726109001511,6.6147,136.06,136.02,16.5409]
[1726109006249,22.5959,136.05,136.0,6.6176]
[1726109006536,6.6157,136.04,135.99,23.1633]
[1726109007525,22.5959,136.05,136.01,6.6167]
[1726109009335,22.5959,136.05,136.02,6.6166]
[1726109013121,22.5959,136.05,136.01,6.617]
[1726109013631,22.5959,136.05,136.02,6.6166]
[1726109017724,22.6721821,136.05,136.02,6.6166]
[1726109018545,22.6721821,136.05,136.01,23.159]
[1726109019137,29.2873821,136.05,136.01,23.159]
[1726109020539,29.2873821,136.05,136.01,16.542]
[1726109021649,38.15960463,136.05,136.01,16.542]
[1726109022012,38.15960463,136.05,136.01,23.159]
[1726109023640,31.54440463,136.05,136.01,23.159]
[1726109024540,30.04440463,136.05,136.01,23.159]
[1726109025031,28.76267109,136.05,136.02,6.6165]
[1726109029832,28.76267109,136.05,136.01,23.159]
[1726109038157,6.6157,136.04,135.98,16.5459]
[1726109038351,35.37787109,136.05,136.0,6.6175]
[1726109042953,28.76267109,136.05,135.98,16.5459]
[1726109043137,28.76267109,136.05,135.99,6.6177]
[1726109043138,6.6157,136.04,135.99,6.6177]
[1726109043939,35.37797109,136.05,136.0,6.6175]
[1726109045651,36.65980997,136.05,136.0,6.6175]
[1726109046347,35.37797109,136.05,136.0,6.6175]
[1726109046660,35.37797109,136.05,136.01,6.6171]
[1726109047046,6.6158,136.04,135.99,6.618]
[1726109049166,7.59699312,136.03,135.99,6.618]
[1726109050146,7.59699312,136.03,135.98,16.5459]
[1726109050348,7.59699312,136.03,136.01,6.6169]
[1726109050550,0.0762821,136.04,136.01,6.6169]
[1726109050858,7.60730446,136.03,136.0,23.1609]
[1726109052060,0.0762821,136.04,136.0,23.1609]
[1726109052235,7.68381633,136.04,136.0,23.1609]
[1726109053362,7.68381633,136.04,136.01,6.617]
[1726109054069,7.68381633,136.04,136.02,6.6165]
[1726109054765,7.68381633,136.04,136.03,6.6161]
[1726109054942,0.0762821,136.04,136.03,6.6161]
[1726109055139,0.0762821,136.04,136.03,8.08613498]
[1726109055855,0.0762821,136.04,136.03,6.6161]
[1726109057364,0.0762821,136.04,136.03,31.8629303]
[1726109058071,0.0762821,136.04,136.03,30.392984]
[1726109058249,0.0762821,136.04,136.03,31.86264193]
[1726109058563,0.0762821,136.04,136.03,65.943984]
[1726109059342,0.0762821,136.04,136.03,81.97731388]
[1726109059752,0.0762821,136.04,136.03,80.50769836]
[1726109062772,0.0762821,136.04,136.03,56.73081436]
[1726109063072,0.0762821,136.04,136.03,26.6161]
[1726109063364,0.0762821,136.04,136.03,6.6161]
[1726109066357,0.0762821,136.04,136.02,23.157]
[1726109067952,0.0762821,136.04,136.02,16.5405]
[1726109068152,0.0762821,136.04,136.01,6.6171]
[1726109068153,0.0762821,136.04,136.0,6.6175]
[1726109069557,6.6921821,136.04,135.99,16.545]
[1726109071073,6.6921821,136.04,135.99,23.1627]
[1726109071289,6.6921821,136.04,135.99,23.163]
[1726109072277,0.0762821,136.04,136.0,6.6176]
[1726109073792,22.6461,136.03,135.97,6.6187]
[1726109074074,22.6461,136.03,135.98,6.6184]
[1726109074276,22.6461,136.03,135.99,6.6177]
[1726109075857,22.6461,136.03,135.98,16.5456]
[1726109077374,29.2623,136.03,135.98,23.1642]
[1726109078185,29.3385821,136.03,135.98,23.1642]
[1726109078982,30.62058507,136.03,135.98,23.1642]
[1726109079284,7.58796754,136.02,135.98,23.1642]
[1726109079672,7.58796754,136.02,135.99,6.6181]
[1726109080164,7.58796754,136.02,135.98,23.1641]
[1726109083177,7.58796754,136.02,135.99,6.6179]
[1726109086894,7.58796754,136.02,135.98,23.1641]
[1726109087289,14.20496754,136.02,135.98,16.5456]
[1726109087676,7.58796754,136.02,135.98,23.1641]
[1726109088190,7.58796754,136.02,135.99,6.6179]
[1726109091669,7.58796754,136.02,135.98,23.1641]
[1726109096697,7.58796754,136.02,135.99,6.618]
[1726109100386,7.58796754,136.02,135.98,23.1641]
[1726109101499,7.58796754,136.02,135.95,16.5499]
[1726109101690,6.6177,136.0,135.95,23.1699]
[1726109101893,6.6172,136.01,135.96,6.6194]
[1726109102096,7.58796754,136.02,135.95,16.5499]
[1726109102097,6.6167,136.02,135.97,6.619]
[1726109102275,7.56216922,136.01,135.97,6.619]
[1726109102480,14.17956922,136.01,135.96,6.6195]
[1726109103085,6.6177,136.0,135.96,6.6195]
[1726109103675,14.17936922,136.01,135.96,6.6195]
[1726109103880,7.56216922,136.01,135.97,6.619]
[1726109104720,14.17936922,136.01,135.97,6.619]
[1726109104878,14.17936922,136.01,135.96,6.6194]
[1726109105587,14.17936922,136.01,135.97,6.619]
[1726109108890,14.17936922,136.01,135.95,16.5499]
[1726109108891,6.6176,136.0,135.95,16.5499]
[1726109109099,6.6182,135.99,135.95,16.5499]
[1726109109717,14.17976922,136.01,135.95,23.1698]
[1726109110418,1.28222143,136.0,135.95,23.1698]
[1726109110794,7.89982143,136.0,135.95,23.1698]
[1726109112216,1.28222143,136.0,135.97,16.5466]
[1726109112392,29.3385821,136.03,135.99,6.6181]